[Event "Queens Festival Final Team 2022"]
[Site "Tornelo"]
[Date "2022.06.26"]
[Round "11.4"]
[White "Nkhoma, Desiderata"]
[Black "Perez, Dalila"]
[Result "0-1"]
[ECO "C01"]
[WhiteElo "1465"]
[BlackElo "1799"]
[Annotator "NA RC"]
[PlyCount "38"]
[EventDate "2022.06.24"]
[EventType "team-tourn"]
[EventCountry "NET"]
[SourceTitle "playchess.com"]
[Source "ChessBase"]
[SourceQuality "1"]
[WhiteTeam "MAW"]
[BlackTeam "Paraguay"]
[BlackTeamCountry "PAR"]
[TimeControl "180+2"]

1. e4 {[%emt 0:00:02]} e6 {[%emt 0:00:04]} 2. d4 {[%emt 0:00:04]} d5 {[%emt 0:00:01]} 3. exd5 {[%emt 0:00:02]} exd5 {[%emt 0:00:02]} 4. Nf3 {[%emt 0:00:02]} Nc6 {[%emt 0:00:01]} 5. Bd3 {[%emt 0:00:04]} Bd6 {[%emt 0:00:02]} 6. Nc3 {[%emt 0:00:03]} Nge7 {[%emt 0:00:01]} 7. O-O {[%emt 0:00:08]} Bg4 {[%emt 0:00:02]} 8. h3 {[%emt 0:00:04]} Bh5 {[%emt 0:00:02]} 9. Bg5 {[%emt 0:00:03]} f6 {[%emt 0:00:03]} 10. Be3 {[%emt 0:00:03]} Qd7 {[%emt 0:00:06]} 11. Be2 {[%emt 0:00:03]} O-O-O {[%emt 0:00:07]} 12. a4 {[%emt 0:00:05]} g5 {[%emt 0:00:03]} 13. Nb5 {[%emt 0:00:05]} Rdg8 {[%emt 0:00:05]} 14. Nxd6+ {[%emt 0:00:08]} Qxd6 {[%emt 0:00:02]} 15. a5 {[%emt 0:00:03]} g4 {[%emt 0:00:13]} 16. Nh2 {[%emt 0:00:10]} gxh3 {[%emt 0:00:09]} 17. g3 {[%emt 0:00:09]} Rxg3+ {[%emt 0:00:06]} 18. Kh1 {[%emt 0:00:17]} Rg2 {[%emt 0:00:19]} 19. Bxh5 {[%emt 0:00:12]} Qxh2# {[%emt 0:00:03]} 0-1

[Event "Queens Festival Final Team 2022"]
[Site "Tornelo"]
[Date "2022.06.26"]
[Round "11.4"]
[White "Mayeregger Gonzalez, Renata"]
[Black "Banda Tapiwa"]
[Result "1-0"]
[ECO "C41"]
[WhiteElo "1461"]
[BlackElo "1213"]
[Annotator "NA RC"]
[PlyCount "109"]
[EventDate "2022.06.24"]
[EventType "team-tourn"]
[EventCountry "NET"]
[SourceTitle "playchess.com"]
[Source "ChessBase"]
[SourceQuality "1"]
[WhiteTeam "Paraguay"]
[BlackTeam "MAW"]
[WhiteTeamCountry "PAR"]
[TimeControl "180+2"]

1. e4 {[%emt 0:00:02]} e5 {[%emt 0:00:04]} 2. Nf3 {[%emt 0:00:03]} d6 {[%emt 0:00:03]} 3. Bc4 {[%emt 0:00:03]} Be7 {[%emt 0:00:10]} 4. O-O {[%emt 0:00:01]} Nf6 {[%emt 0:00:04]} 5. Nc3 {[%emt 0:00:04]} O-O {[%emt 0:00:03]} 6. h3 {[%emt 0:00:02]} Nbd7 {[%emt 0:00:04]} 7. d4 {[%emt 0:00:01]} c6 {[%emt 0:00:10]} 8. Bg5 {[%emt 0:00:06]} b5 {[%emt 0:00:05]} 9. Bb3 {[%emt 0:00:04]} Ne8 {[%emt 0:00:11]} 10. Bxe7 {[%emt 0:00:05]} Qxe7 {[%emt 0:00:02]} 11. d5 {[%emt 0:00:03]} Bb7 {[%emt 0:00:05]} 12. dxc6 {[%emt 0:00:02]} Bxc6 {[%emt 0:00:02]} 13. Nd5 {[%emt 0:00:01]} Bxd5 {[%emt 0:00:03]} 14. Qxd5 {[%emt 0:00:04]} a6 {[%emt 0:00:02]} 15. Qxa8 {[%emt 0:00:04]} Nef6 {[%emt 0:00:03]} 16. Qc6 {[%emt 0:00:06]} Nb8 {[%emt 0:00:04]} 17. Qc3 {[%emt 0:00:04]} Nxe4 {[%emt 0:00:04]} 18. Qd3 {[%emt 0:00:03]} Nf6 {[%emt 0:00:02]} 19. Rad1 {[%emt 0:00:05]} Rd8 {[%emt 0:00:04]} 20. Rfe1 {[%emt 0:00:03]} Nc6 {[%emt 0:00:03]} 21. Bd5 {[%emt 0:00:05]} Nb4 {[%emt 0:00:03]} 22. Qb3 {[%emt 0:00:06]} Nbxd5 {[%emt 0:00:02]} 23. Rxd5 {[%emt 0:00:03]} Nxd5 {[%emt 0:00:02]} 24. Qxd5 {[%emt 0:00:01]} Qf6 {[%emt 0:00:03]} 25. c4 {[%emt 0:00:07]} bxc4 {[%emt 0:00:03]} 26. Qxc4 {[%emt 0:00:04]} h6 {[%emt 0:00:02]} 27. Qxa6 {[%emt 0:00:07]} Re8 {[%emt 0:00:04]} 28. b4 {[%emt 0:00:07]} Re6 {[%emt 0:00:07]} 29. Qa8+ {[%emt 0:00:08]} Kh7 {[%emt 0:00:03]} 30. Qe4+ {[%emt 0:00:02]} g6 {[%emt 0:00:05]} 31. b5 {[%emt 0:00:06]} Re8 {[%emt 0:00:06]} 32. b6 {[%emt 0:00:06]} Rb8 {[%emt 0:00:04]} 33. b7 {[%emt 0:00:04]} Qe6 {[%emt 0:00:03]} 34. a4 {[%emt 0:00:03]} Qd7 {[%emt 0:00:07]} 35. Rb1 {[%emt 0:00:11]} f5 {[%emt 0:00:02]} 36. Qd5 {[%emt 0:00:05]} e4 {[%emt 0:00:07]} 37. Ne5 {[%emt 0:00:04]} Qe7 {[%emt 0:00:15]} 38. Qf7+ {[%emt 0:00:06]} Qxf7 {[%emt 0:00:03]} 39. Nxf7 {[%emt 0:00:00]} d5 {[%emt 0:00:05]} 40. Nd6 {[%emt 0:00:02]} Kg7 {[%emt 0:00:03]} 41. Rc1 {[%emt 0:00:03]} Kf6 {[%emt 0:00:02]} 42. Rc8 {[%emt 0:00:05]} Rxb7 {[%emt 0:00:02]} 43. Nxb7 {[%emt 0:00:03]} Ke5 {[%emt 0:00:02]} 44. a5 {[%emt 0:00:00]} d4 {[%emt 0:00:02]} 45. a6 {[%emt 0:00:00]} d3 {[%emt 0:00:01]} 46. Rd8 {[%emt 0:00:04]} f4 {[%emt 0:00:03]} 47. a7 {[%emt 0:00:02]} e3 {[%emt 0:00:04]} 48. fxe3 {[%emt 0:00:04]} fxe3 {[%emt 0:00:02]} 49. a8=Q {[%emt 0:00:03]} d2 {[%emt 0:00:06]} 50. Qa5+ {[%emt 0:00:02]} Ke4 {[%emt 0:00:02]} 51. Nc5+ {[%emt 0:00:06]} Kf4 {[%emt 0:00:06]} 52. Qc7+ {[%emt 0:00:03]} Kf5 {[%emt 0:00:03]} 53. Rd5+ {[%emt 0:00:02]} Kf6 {[%emt 0:00:03]} 54. Qc6+ {[%emt 0:00:02]} Kg7 {[%emt 0:00:04]} 55. Rd7+ {[%emt 0:00:02]} 1-0

[Event "Queens Festival Final Team 2022"]
[Site "Tornelo"]
[Date "2022.06.26"]
[Round "11.5"]
[White "Ismayil, Malak"]
[Black "Alboredo, Julia"]
[Result "0-1"]
[ECO "B30"]
[WhiteElo "2001"]
[BlackElo "2252"]
[Annotator "TA"]
[PlyCount "120"]
[EventDate "2022.06.24"]
[EventType "team-tourn"]
[EventCountry "NET"]
[SourceTitle "playchess.com"]
[Source "ChessBase"]
[SourceQuality "1"]
[WhiteTeam "Azerbaijan"]
[BlackTeam "Brazil"]
[WhiteTeamCountry "AZE"]
[BlackTeamCountry "BRA"]
[TimeControl "180+2"]

{[%evp 9,119,20,33,22,49,29,38,37,41,32,45,29,46,0,0,0,0,-35,-13,-20,-30,-28,-19,-40,-19,-89,-66,-151,-130,-106,-72,-76,-73,-151,-98,-106,-95,-106,-108,-112,-41,-151,-159,-165,-39,-43,208,204,220,102,147,0,13,13,11,0,0,-37,-43,-95,-107,-128,-112,-201,-233,-229,-213,-210,-195,-482,-465,-793,-800,-768,-771,-760,-799,-786,-739,-979,-947,-1016,-1002,-1447,-1379,-6187,-5541,-5010,-1189,-2354,-3043,-29988,-29989,-29988,-29989,-29989,-29990,-29993,-29994,-29994,-29995,-29997,-29996,-29997,-29998,-29998,-29997,-29997,-29998,-29998,-29999,-29999]} 1. e4 {[%emt 0:00:02]} c5 {[%emt 0:00:05]} 2. Nf3 {[%emt 0:00:02]} Nc6 {[%emt 0:00:02]} 3. Bb5 {[%emt 0:00:02]} Nf6 {[%emt 0:00:01]} 4. Bxc6 {[%emt 0:00:03]} dxc6 {[%emt 0:00:02]} 5. d3 {[%emt 0:00:01]} Bg4 {[%emt 0:00:05][%cal Oc5c4]} 6. O-O {[%emt 0:00:01] B30: Sicilian: 2...Nc6 3 Bb5, lines without ...g6.} g6 {[%emt 0:00:04]} 7. Be3 {[%emt 0:00:02] [#]} b6 $146 {[%emt 0:00:01]} ({Predecessor:} 7... c4 8. h3 Bxf3 9. Qxf3 cxd3 10. Rd1 Bg7 11. cxd3 O-O 12. Nc3 Qa5 13. d4 Rfd8 {1-0 (52) Barski,R (2313)-Zombirt,F (1864) Polanica Zdroj 2011}) 8. Nbd2 {[%emt 0:00:01] White is slightly better.} Bg7 {[%emt 0:00:02]} 9. h3 {[%emt 0:00:01]} Bc8 {[%emt 0:00:06]} 10. Qe2 {[%emt 0:00:02]} O-O {[%emt 0:00:02]} 11. Rad1 {[%emt 0:00:02]} (11. a4 $14 {is superior.}) 11... Qc7 $11 {[%emt 0:00:03]} 12. Bg5 {[%emt 0:00:11]} e5 {[%emt 0:00:08]} 13. Bh4 {[%emt 0:00:06]} a5 {[%emt 0:00:04]} 14. Bg3 {[%emt 0:00:02]} Nh5 {[%emt 0:00:04]} 15. Bh2 {[%emt 0:00:02]} Ba6 {[%emt 0:00:01]} 16. Qe3 {[%emt 0:00:05]} Rad8 {[%emt 0:00:10]} 17. g4 {[%emt 0:00:08]} (17. Nc4 $11 {keeps the balance.}) 17... Nf4 $17 {[%emt 0:00:05]} 18. Bxf4 {[%emt 0:00:02]} (18. Kh1 $1 $15) 18... exf4 {[%emt 0:00:00]} 19. Qe2 {[%emt 0:00:02]} Rfe8 {[%emt 0:00:02]} 20. b3 {[%emt 0:00:15]} Bc8 {[%emt 0:00:13][%cal Ba6c8,Bc8f5,Bf5e6][%mdl 32]} 21. Nh2 {[%emt 0:00:05]} (21. Rfe1 $142) 21... f5 {[%emt 0:00:05]} (21... h5 $142 22. Qf3 hxg4 23. Nxg4 Bc3) 22. gxf5 {[%emt 0:00:06]} Bxf5 {[%emt 0:00:07][%mdl 64] [#] Pin} (22... gxf5 {with more complications.} 23. Kh1 Rd6 24. Qh5 Rf8) 23. Qf3 {[%emt 0:00:04]} ({Don't blunder} 23. Ng4 $2 h5 24. Nh2 Bxh3 $19) 23... Be6 {[%emt 0:00:02]} 24. Kh1 {[%emt 0:00:02]} Qd7 {[%emt 0:00:04]} ({Black should play} 24... b5 $17 25. Ng4 a4) 25. Qxf4 {[%emt 0:00:10]} (25. h4 $1 $15) 25... Bxh3 {[%emt 0:00:02]} 26. Rg1 {[%emt 0:00:02] [#]} Be5 {[%emt 0:00:03] This bishop pair is nice.} (26... Re5 $1 $19 {Hoping for ...Rf8.} 27. Nc4 Rh5 28. Nxb6 Qe7) 27. Qh4 {[%emt 0:00:03] Threatens to win with f4.} Bxh2 {[%emt 0:00:14][%mdl 8192]} (27... Rf8 $1 $15 {keeps the upper hand.}) 28. Kxh2 $18 {[%emt 0:00:03]} Be6 {[%emt 0:00:04]} 29. Rg2 {[%emt 0:00:31]} (29. f4 $18) 29... Rf8 {[%emt 0:00:16][%cal Be8f8,Bf8f3,Bf3h3,Bh3h4][%mdl 32]} 30. Rdg1 {[%emt 0:00:02]} (30. f4 $16) 30... Qd6+ $11 {[%emt 0:00:13]} 31. Kh1 {[%emt 0:00:17]} Rd7 $1 {[%emt 0:00:19]} 32. Qh6 {[%emt 0:00:18][%cal Og2g6] Black must now prevent Rxg6+!} Rg7 {[%emt 0:00:09]} 33. Nf1 {[%emt 0:00:08]} Rf3 {[%emt 0:00:07]} 34. Nh2 {[%emt 0:00:22]} ({Better is} 34. Rh2 $15) 34... Rh3 $17 {[%emt 0:00:03] Black continues to play with concentration.} 35. Qd2 {[%emt 0:00:01]} Bg4 {[%emt 0:00:10] 0x0.001b6993724edp-1022s more active pieces.} 36. f4 {[%emt 0:00:20]} (36. e5 $17 {keeps fighting.} Qd5 37. c4 Qxe5 38. Re1 (38. f4 $2 Rxh2+ 39. Rxh2 Bf3+ 40. Qg2 Qxf4 $19)) 36... Bf3 $19 {[%emt 0:00:08] ...g5 is the strong threat.} 37. Rf1 {[%emt 0:00:09]} Bxg2+ {[%emt 0:00:03]} 38. Qxg2 {[%emt 0:00:03]} Rh4 {[%emt 0:00:05]} 39. Qg3 {[%emt 0:00:03]} (39. Qg5 Rh5 40. Qg4) 39... g5 {[%emt 0:00:08]} 40. e5 {[%emt 0:00:13]} (40. Rg1 $142 Qxf4 41. Qxf4 gxf4 42. Rxg7+ Kxg7 43. Kg2) 40... Qd5+ {[%emt 0:00:01]} 41. Rf3 {[%emt 0:00:03]} Rxf4 {[%emt 0:00:03]} 42. Kg2 {[%emt 0:00:01]} Rxf3 {[%emt 0:00:02]} 43. Qxf3 {[%emt 0:00:03]} Qxf3+ {[%emt 0:00:04]} 44. Kxf3 {[%emt 0:00:01][%mdl 4096] Endgame KR-KN} Kf7 {[%emt 0:00:03]} 45. Ng4 {[%emt 0:00:02]} Ke6 {[%emt 0:00:02]} 46. Ke4 {[%emt 0:00:01]} h5 {[%emt 0:00:04]} 47. Ne3 {[%emt 0:00:02]} Rf7 {[%emt 0:00:02][%csl Gg5][%cal Rf7f4]} 48. Nc4 {[%emt 0:00:01]} Rf4+ {[%emt 0:00:04]} (48... h4 $142 49. Nd2 g4) 49. Ke3 {[%emt 0:00:02]} h4 {[%emt 0:00:05] ( -> ...h3)} 50. Nxb6 {[%emt 0:00:02]} h3 {[%emt 0:00:01] Black mates.} 51. Na4 {[%emt 0:00:03]} h2 {[%emt 0:00:03]} 52. Nxc5+ {[%emt 0:00:02]} Kxe5 {[%emt 0:00:02]} 53. c3 {[%emt 0:00:06]} h1=Q {[%emt 0:00:02][%cal Rh1e1]} 54. d4+ {[%emt 0:00:01]} Kd6 {[%emt 0:00:03]} 55. Kd3 {[%emt 0:00:02]} Qb1+ {[%emt 0:00:03]} 56. Kc4 {[%emt 0:00:02]} Qf1+ {[%emt 0:00:02]} 57. Nd3 {[%emt 0:00:01]} Rf3 {[%emt 0:00:04][%csl Gf3][%cal Rf1d3]} 58. b4 {[%emt 0:00:01]} Qxd3+ {[%emt 0:00:01]} 59. Kb3 {[%emt 0:00:01]} Qxc3+ {[%emt 0:00:01]} 60. Ka4 {[%emt 0:00:01]} Qxb4# {[%emt 0:00:01] Weighted Error Value: White=0.76/Black=0.27 (precise)} 0-1

[Event "Queens Festival Final Team 2022"]
[Site "Tornelo"]
[Date "2022.06.26"]
[Round "11.5"]
[White "Medeiros, Thauane Ferreira"]
[Black "Mammadova, Aysel"]
[Result "0-1"]
[ECO "A47"]
[WhiteElo "1884"]
[BlackElo "1893"]
[Annotator "NA RC"]
[PlyCount "106"]
[EventDate "2022.06.24"]
[EventType "team-tourn"]
[EventCountry "NET"]
[SourceTitle "playchess.com"]
[Source "ChessBase"]
[SourceQuality "1"]
[WhiteTeam "Brazil"]
[BlackTeam "Azerbaijan"]
[WhiteTeamCountry "BRA"]
[BlackTeamCountry "AZE"]
[TimeControl "180+2"]

1. d4 {[%emt 0:00:02]} Nf6 {[%emt 0:00:04]} 2. Bf4 {[%emt 0:00:03]} e6 {[%emt 0:00:02]} 3. e3 {[%emt 0:00:01]} Be7 {[%emt 0:00:02]} 4. Bd3 {[%emt 0:00:03]} d6 {[%emt 0:00:02]} 5. h3 {[%emt 0:00:05]} b6 {[%emt 0:00:02]} 6. Nf3 {[%emt 0:00:03]} Bb7 {[%emt 0:00:02]} 7. Nbd2 {[%emt 0:00:07]} Nbd7 {[%emt 0:00:02]} 8. O-O {[%emt 0:00:09]} O-O {[%emt 0:00:02]} 9. Bh2 {[%emt 0:00:01]} Ne8 {[%emt 0:00:05]} 10. c3 {[%emt 0:00:02]} Bf6 {[%emt 0:00:02]} 11. Ne4 {[%emt 0:00:12]} Bxe4 {[%emt 0:00:06]} 12. Bxe4 {[%emt 0:00:00]} d5 {[%emt 0:00:02]} 13. Bc2 {[%emt 0:00:02]} Qe7 {[%emt 0:00:06]} 14. Ne5 {[%emt 0:00:06]} Bxe5 {[%emt 0:00:03]} 15. dxe5 {[%emt 0:00:00]} c5 {[%emt 0:00:04]} 16. Bf4 {[%emt 0:00:11]} f6 {[%emt 0:00:03]} 17. exf6 {[%emt 0:00:03]} Nexf6 {[%emt 0:00:02]} 18. Qd3 {[%emt 0:00:08]} e5 {[%emt 0:00:07]} 19. Bg5 {[%emt 0:00:04]} e4 {[%emt 0:00:02]} 20. Qd2 {[%emt 0:00:03]} Qe5 {[%emt 0:00:04]} 21. Bf4 {[%emt 0:00:07]} Qf5 {[%emt 0:00:04]} 22. Rad1 {[%emt 0:00:08]} Ne5 {[%emt 0:00:07]} 23. Bxe5 {[%emt 0:00:05]} Qxe5 {[%emt 0:00:03]} 24. a4 {[%emt 0:00:13]} Rad8 {[%emt 0:00:05]} 25. Bb3 {[%emt 0:00:11]} Kh8 {[%emt 0:00:09]} 26. Qe2 {[%emt 0:00:23]} Rd7 {[%emt 0:00:16]} 27. Qb5 {[%emt 0:00:09]} Rfd8 {[%emt 0:00:04]} 28. a5 {[%emt 0:00:05]} Qc7 {[%emt 0:00:18]} 29. axb6 {[%emt 0:00:08]} axb6 {[%emt 0:00:03]} 30. Rc1 {[%emt 0:00:24]} Rd6 {[%emt 0:00:07]} 31. Rfd1 {[%emt 0:00:06]} h6 {[%emt 0:00:07]} 32. Ra1 {[%emt 0:00:12]} Qd7 {[%emt 0:00:10]} 33. Qxd7 {[%emt 0:00:11]} R8xd7 {[%emt 0:00:03]} 34. Ra8+ {[%emt 0:00:02]} Kh7 {[%emt 0:00:03]} 35. Rb8 {[%emt 0:00:02]} Rd8 {[%emt 0:00:07]} 36. Rb7 {[%emt 0:00:03]} R8d7 {[%emt 0:00:02]} 37. Rb8 {[%emt 0:00:01]} Kg6 {[%emt 0:00:11]} 38. Bc2 {[%emt 0:00:04]} Kf7 {[%emt 0:00:03]} 39. Ba4 {[%emt 0:00:03]} Rd8 {[%emt 0:00:03]} 40. Rb7+ {[%emt 0:00:01]} Kf8 {[%emt 0:00:04]} 41. g3 {[%emt 0:00:05]} d4 {[%emt 0:00:02]} 42. cxd4 {[%emt 0:00:02]} cxd4 {[%emt 0:00:02]} 43. exd4 {[%emt 0:00:02]} Rxd4 {[%emt 0:00:02]} 44. Rxd4 {[%emt 0:00:01]} Rxd4 {[%emt 0:00:02]} 45. Bc6 {[%emt 0:00:05]} Rb4 {[%emt 0:00:02]} 46. Rb8+ {[%emt 0:00:05]} Ke7 {[%emt 0:00:02]} 47. Rb7+ {[%emt 0:00:03]} Kd6 {[%emt 0:00:02]} 48. Bxe4 {[%emt 0:00:05]} Nxe4 {[%emt 0:00:02]} 49. Rxg7 {[%emt 0:00:01]} Rxb2 {[%emt 0:00:03]} 50. Rg6+ {[%emt 0:00:01]} Ke5 {[%emt 0:00:02]} 51. Rxh6 {[%emt 0:00:00]} Nxf2 {[%emt 0:00:03]} 52. Rh5+ {[%emt 0:00:02]} Ke4 {[%emt 0:00:03]} 53. Rh8 {[%emt 0:00:00]} Nd3 {[%emt 0:00:05]} 0-1

[Event "Queens Festival Final Team 2022"]
[Site "Tornelo"]
[Date "2022.06.26"]
[Round "11.5"]
[White "Khalilova, Khadija"]
[Black "Bucci, Andrea Vidigal"]
[Result "1-0"]
[ECO "B12"]
[WhiteElo "1777"]
[BlackElo "1769"]
[Annotator "NA RC"]
[PlyCount "69"]
[EventDate "2022.06.24"]
[EventType "team-tourn"]
[EventCountry "NET"]
[SourceTitle "playchess.com"]
[Source "ChessBase"]
[SourceQuality "1"]
[WhiteTeam "Azerbaijan"]
[BlackTeam "Brazil"]
[WhiteTeamCountry "AZE"]
[BlackTeamCountry "BRA"]
[TimeControl "180+2"]

1. e4 {[%emt 0:00:02]} c6 {[%emt 0:00:04]} 2. d4 {[%emt 0:00:03]} d6 {[%emt 0:00:01]} 3. c3 {[%emt 0:00:02]} Nd7 {[%emt 0:00:01]} 4. f4 {[%emt 0:00:02]} Ngf6 {[%emt 0:00:02]} 5. e5 {[%emt 0:00:03]} dxe5 {[%emt 0:00:01]} 6. fxe5 {[%emt 0:00:01]} Nd5 {[%emt 0:00:02]} 7. Nf3 {[%emt 0:00:02]} e6 {[%emt 0:00:01]} 8. Bd3 {[%emt 0:00:03]} Be7 {[%emt 0:00:03]} 9. O-O {[%emt 0:00:01]} f5 {[%emt 0:00:03]} 10. exf6 {[%emt 0:00:03]} N7xf6 {[%emt 0:00:03]} 11. Qe2 {[%emt 0:00:08]} O-O {[%emt 0:00:04]} 12. Ne5 {[%emt 0:00:05]} Bd6 {[%emt 0:00:08]} 13. Nd2 {[%emt 0:00:04]} Nd7 {[%emt 0:00:10]} 14. Qe4 {[%emt 0:00:22]} Rxf1+ {[%emt 0:00:04]} 15. Nxf1 {[%emt 0:00:04]} N5f6 {[%emt 0:00:06]} 16. Qe2 {[%emt 0:00:07]} Qb6 {[%emt 0:00:03]} 17. Nc4 {[%emt 0:00:07]} Qc7 {[%emt 0:00:28]} 18. Qxe6+ {[%emt 0:00:03]} Kh8 {[%emt 0:00:02]} 19. Qxd6 {[%emt 0:00:02]} Qxd6 {[%emt 0:00:07]} 20. Nxd6 {[%emt 0:00:02]} Nb6 {[%emt 0:00:01]} 21. Nxc8 {[%emt 0:00:02]} Rxc8 {[%emt 0:00:00]} 22. Bf4 {[%emt 0:00:02]} Nbd5 {[%emt 0:00:02]} 23. Bg3 {[%emt 0:00:02]} Nh5 {[%emt 0:00:03]} 24. Be5 {[%emt 0:00:04]} Nhf4 {[%emt 0:00:10]} 25. Bc4 {[%emt 0:00:06]} Rf8 {[%emt 0:00:16]} 26. Bxd5 {[%emt 0:00:03]} Nxd5 {[%emt 0:00:02]} 27. Ng3 {[%emt 0:00:05]} h6 {[%emt 0:00:01]} 28. Rf1 {[%emt 0:00:05]} Re8 {[%emt 0:00:07]} 29. h3 {[%emt 0:00:03]} Ne3 {[%emt 0:00:02]} 30. Rf7 {[%emt 0:00:02]} Rg8 {[%emt 0:00:06]} 31. Rxb7 {[%emt 0:00:04]} Nc4 {[%emt 0:00:02]} 32. Nf5 {[%emt 0:00:03]} Nxe5 {[%emt 0:00:04]} 33. dxe5 {[%emt 0:00:03]} Kh7 {[%emt 0:00:01]} 34. e6 {[%emt 0:00:02]} Kg6 {[%emt 0:00:01]} 35. Ne7+ {[%emt 0:00:03]} 1-0

[Event "Queens Festival Final Team 2022"]
[Site "Tornelo"]
[Date "2022.06.26"]
[Round "11.5"]
[White "Gomes, Maria Eduarda Papini"]
[Black "Bakhshizada, Asnad"]
[Result "1-0"]
[ECO "D36"]
[WhiteElo "1618"]
[BlackElo "1052"]
[Annotator "NA RC"]
[PlyCount "53"]
[EventDate "2022.06.24"]
[EventType "team-tourn"]
[EventCountry "NET"]
[SourceTitle "playchess.com"]
[Source "ChessBase"]
[SourceQuality "1"]
[WhiteTeam "Brazil"]
[BlackTeam "Azerbaijan"]
[WhiteTeamCountry "BRA"]
[BlackTeamCountry "AZE"]
[TimeControl "180+2"]

1. d4 {[%emt 0:00:02]} d5 {[%emt 0:00:05]} 2. c4 {[%emt 0:00:01]} e6 {[%emt 0:00:02]} 3. Nc3 {[%emt 0:00:03]} Nf6 {[%emt 0:00:04]} 4. cxd5 {[%emt 0:00:01]} exd5 {[%emt 0:00:03]} 5. Bg5 {[%emt 0:00:02]} Be7 {[%emt 0:00:01]} 6. e3 {[%emt 0:00:00]} O-O {[%emt 0:00:03]} 7. Bd3 {[%emt 0:00:02]} c6 {[%emt 0:00:02]} 8. Qc2 {[%emt 0:00:02]} h6 {[%emt 0:00:01]} 9. Bh4 {[%emt 0:00:05]} Be6 {[%emt 0:00:04]} 10. Nge2 {[%emt 0:00:03]} Nbd7 {[%emt 0:00:02]} 11. O-O {[%emt 0:00:03]} Rc8 {[%emt 0:00:04]} 12. f3 {[%emt 0:00:02]} Nb6 {[%emt 0:00:03]} 13. Bf2 {[%emt 0:00:02]} Bd6 {[%emt 0:00:06]} 14. e4 {[%emt 0:00:03]} dxe4 {[%emt 0:00:04]} 15. fxe4 {[%emt 0:00:00]} Be7 {[%emt 0:00:05]} 16. e5 {[%emt 0:00:06]} Nfd5 {[%emt 0:00:02]} 17. Nxd5 {[%emt 0:00:03]} Nxd5 {[%emt 0:00:03]} 18. Ng3 {[%emt 0:00:15]} Nb4 {[%emt 0:00:04]} 19. Qd2 {[%emt 0:00:05]} b5 {[%emt 0:00:03]} 20. Bf5 {[%emt 0:00:12]} Qd7 {[%emt 0:00:15]} 21. Bxe6 {[%emt 0:00:13]} Qxe6 {[%emt 0:00:02]} 22. Be3 {[%emt 0:00:01]} Nd5 {[%emt 0:00:05]} 23. Nf5 {[%emt 0:00:03]} Nxe3 {[%emt 0:00:04]} 24. Qxe3 {[%emt 0:00:04]} Bg5 {[%emt 0:00:01]} 25. Qg3 {[%emt 0:00:03]} Rcd8 {[%emt 0:00:12]} 26. h4 {[%emt 0:00:03]} Be7 {[%emt 0:00:06]} 27. Qxg7# {[%emt 0:00:02]} 1-0

[Event "Queens Festival Final Team 2022"]
[Site "Tornelo"]
[Date "2022.06.26"]
[Round "11.6"]
[White "Maksimovic, Suzana"]
[Black "Krush, Irina"]
[Result "0-1"]
[ECO "D27"]
[WhiteElo "2145"]
[BlackElo "2430"]
[Annotator "TA"]
[PlyCount "54"]
[EventDate "2022.06.24"]
[EventType "team-tourn"]
[EventCountry "NET"]
[SourceTitle "playchess.com"]
[Source "ChessBase"]
[SourceQuality "1"]
[WhiteTeam "Serbia"]
[BlackTeam "United States"]
[WhiteTeamCountry "SRB"]
[BlackTeamCountry "USA"]
[TimeControl "180+2"]

{[%evp 17,54,0,4,6,4,-9,-2,0,24,0,0,0,15,7,0,0,0,11,12,-25,12,0,14,-110,-116,-130,-105,-90,-61,-335,-317,-307,-327,-322,-318,-1586,-1543,-1361,-1286]} 1. d4 {[%emt 0:00:02]} d5 {[%emt 0:00:04]} 2. c4 {[%emt 0:00:04]} dxc4 {[%emt 0:00:01]} 3. Nf3 {[%emt 0:00:01]} Nf6 {[%emt 0:00:01]} 4. e3 {[%emt 0:00:02]} e6 {[%emt 0:00:01]} 5. Bxc4 {[%emt 0:00:01]} c5 {[%emt 0:00:01]} 6. O-O {[%emt 0:00:02]} a6 {[%emt 0:00:01]} 7. Bd3 {[%emt 0:00:04]} cxd4 {[%emt 0:00:08]} 8. exd4 {[%emt 0:00:04]} Be7 {[%emt 0:00:04]} 9. Nc3 {[%emt 0:00:15]} Nc6 {[%emt 0:00:02]} 10. Be3 {[%emt 0:00:06] D27: Queen's Gambit Accepted: Classical main line: 7 e4!? and 7 a4.} Nb4 {[%emt 0:00:04]} 11. Bb1 {[%emt 0:00:02] [#]} b5 $146 {[%emt 0:00:06]} ({Predecessor:} 11... O-O 12. Ne5 Bd7 13. Qf3 Nbd5 14. Bg5 Bc6 15. Qh3 g6 16. Re1 Nh5 17. Bh6 Ng7 {0-1 (34) Mammadov,A (2331)-Sanikidze,T (2600) Baku 2009}) 12. a4 {[%emt 0:00:07] The position is equal.} bxa4 {[%emt 0:00:01]} 13. Qxa4+ {[%emt 0:00:18]} Bd7 {[%emt 0:00:02]} 14. Qd1 {[%emt 0:00:12]} O-O {[%emt 0:00:03]} 15. Re1 {[%emt 0:00:06]} Bc6 {[%emt 0:00:18]} 16. Ne5 {[%emt 0:00:06]} Bb7 {[%emt 0:00:02]} 17. Bg5 {[%emt 0:00:15]} Rc8 $1 {[%emt 0:00:39]} 18. Qe2 {[%emt 0:00:19]} Nbd5 {[%emt 0:00:09]} ({Much less strong is} 18... Qxd4 19. Rd1 Qc5 20. Bxf6 Bxf6 21. Nd7 $16) 19. Bd2 {[%emt 0:00:06]} Qb6 {[%emt 0:00:08]} 20. Ra2 {[%emt 0:00:17]} (20. Nxd5 $11 Bxd5 21. Bc3) 20... Qxd4 $17 {[%emt 0:00:03]} 21. Nf3 {[%emt 0:00:15]} Qg4 {[%emt 0:00:15] Black is more active.} 22. h3 {[%emt 0:00:04]} Qh5 {[%emt 0:00:01]} 23. Bd3 $2 {[%emt 0:00:07][%mdl 8192] This move loses the game for White.} (23. Ne4 $15 Nxe4 24. Bxe4) 23... Nb4 $19 {[%emt 0:00:17]} 24. Ra4 {[%emt 0:00:14]} Bxf3 {[%emt 0:00:01]} 25. gxf3 {[%emt 0:00:04]} Qxh3 {[%emt 0:00:15] And now ...Bd6 would win.} 26. Bxa6 $2 {[%emt 0:00:07] [#]} (26. Qf1 Qxf3 27. Be2) 26... Bd6 $1 {[%emt 0:00:16] ( -> ...Qh2+)} 27. f4 {[%emt 0:00:06] [#]} (27. Qe3 Bh2+) 27... Ng4 $1 {[%emt 0:00:09] Weighted Error Value: White=0.88/Black=0.08 (flawless)} 0-1